bitfinex-derivatives/quotes_SOLF0:USTF0_20250831
["timestamp","ask_amount","ask_price","bid_price","bid_amount"]
[1756609514973,7.93,205.62,205.52,2.11594979]
[1756609515178,7.93,205.62,205.53,7.91]
[1756609520774,7.93,205.62,205.55,0.03215949]
[1756609523281,7.93,205.59,205.55,0.03215949]
[1756609526888,8.41,205.59,205.55,0.03215949]
[1756609527088,7.93,205.57,205.55,0.03215949]
[1756609527388,129.06594979,205.57,205.55,0.03215949]
[1756609527688,129.54594979,205.57,205.55,0.03215949]
[1756609531191,10.52594979,205.57,205.55,0.03215949]
[1756609531391,126.91,205.56,205.55,0.03215949]
[1756609536387,127.39,205.56,205.55,0.03215949]
[1756609536592,127.39,205.56,205.45,7.91]
[1756609536891,5.42758531,205.58,205.45,7.91]
[1756609536892,7.93,205.52,205.45,7.91]
[1756609537092,118.94,205.51,205.45,7.91]
[1756609537787,0.03615222,205.5,205.45,7.91]
[1756609537991,7.83,205.49,205.45,7.91]
[1756609539391,7.83,205.49,205.41,7.8]
[1756609539592,7.83,205.46,205.37,7.8]
[1756609540190,7.83,205.43,205.37,7.8]
[1756609540389,7.83,205.41,205.37,7.8]
[1756609541088,20.52,205.42,205.37,7.8]
[1756609541389,7.83,205.41,205.37,7.8]
[1756609541592,20.52,205.42,205.37,7.8]
[1756609541788,7.83,205.41,205.37,7.8]
[1756609543287,20.52,205.42,205.34,2.11594979]
[1756609543288,0.03168163,205.44,205.34,2.11594979]
[1756609543592,0.03168163,205.44,205.38,7.8]
[1756609543795,0.76,205.45,205.38,7.8]
[1756609543987,0.03187855,205.43,205.38,7.8]
[1756609544393,0.03187855,205.43,205.37,2.11594979]
[1756609544991,0.03187855,205.43,205.38,7.8]
[1756609545191,0.03187855,205.43,205.37,2.11594979]
[1756609545394,0.03187855,205.43,205.38,7.8]
[1756609545589,0.03187855,205.43,205.37,2.11594979]
[1756609545899,0.03187855,205.43,205.38,7.8]
[1756609546894,0.03187855,205.43,205.37,2.11594979]
[1756609547089,0.03187855,205.43,205.38,7.8]
[1756609547295,0.03187855,205.43,205.37,2.11594979]
[1756609547495,0.03187855,205.43,205.38,7.8]
[1756609547695,0.03187855,205.43,205.37,2.11594979]
[1756609548099,0.03187855,205.43,205.38,7.8]
[1756609548995,0.03187855,205.43,205.37,2.11594979]
[1756609549390,0.03187855,205.43,205.38,7.8]
[1756609549997,0.03187855,205.43,205.37,2.11594979]
[1756609550501,7.83,205.42,205.38,7.8]
[1756609551000,7.83,205.45,205.38,7.8]
[1756609551201,0.03188972,205.42,205.38,7.8]
[1756609551503,7.86188972,205.42,205.35,7.8]
[1756609560908,7.86188972,205.42,205.29,45.05621766]
[1756609560909,0.03188972,205.42,205.3,9.91594979]
[1756609561208,7.83,205.4,205.3,7.8]
[1756609561607,7.83,205.36,205.25,7.8]
[1756609562005,7.83,205.34,205.25,7.8]
[1756609562407,0.03396683,205.33,205.25,7.8]
[1756609563912,7.83,205.32,205.25,7.8]
[1756609564113,0.03396683,205.33,205.26,7.8]
[1756609565712,7.86396683,205.33,205.26,7.8]
[1756609568320,0.03396683,205.33,205.28,7.58]
[1756609568721,7.36,205.37,205.28,7.58]
[1756609569221,0.03597314,205.33,205.28,7.58]
[1756609570426,0.03597314,205.33,205.31,7.58]
[1756609570621,0.03597314,205.33,205.3,2.11594979]
[1756609571523,0.03597314,205.33,205.31,7.58]
[1756609571725,0.03597314,205.33,205.3,2.11594979]
[1756609572224,0.03597314,205.33,205.31,7.58]
[1756609573823,7.36,205.4,205.31,8.06]
[1756609574022,7.36,205.4,205.34,2.11594979]
[1756609574526,7.36,205.4,205.33,9.69594979]
[1756609575015,7.36,205.4,205.34,0.03138288]
[1756609576019,74.44,205.45,205.34,0.03138288]
[1756609576020,2.11594979,205.37,205.34,0.03138288]
[1756609576226,7.36,205.36,205.34,0.03138288]
[1756609576525,26.83594979,205.37,205.34,0.03138288]
[1756609576726,7.36,205.36,205.34,0.03138288]
[1756609577522,51.53594979,205.37,205.34,0.03138288]
[1756609578228,67.79594979,205.37,205.34,0.03138288]
[1756609578428,7.36,205.36,205.34,0.03138288]
[1756609579318,67.79594979,205.37,205.34,0.03138288]
[1756609580223,7.36,205.36,205.34,0.03138288]
[1756609580716,7.84,205.36,205.34,0.03138288]
[1756609581621,7.36,205.35,205.34,0.03138288]
[1756609581821,7.36,205.4,205.34,0.03138288]
[1756609587331,85.2,205.4,205.34,0.03138288]
[1756609588432,7.36,205.4,205.34,0.03138288]
[1756609588630,32.92,205.4,205.34,0.03138288]
[1756609589132,57.2,205.4,205.34,0.03138288]
[1756609589334,80.18,205.4,205.34,0.03138288]
[1756609592235,7.36,205.4,205.34,0.03138288]
[1756609592431,32.42,205.4,205.34,0.03138288]
[1756609593341,7.36,205.4,205.34,0.03138288]
[1756609594525,7.36,205.4,205.35,7.58]
[1756609594725,2.11594979,205.46,205.34,0.03138288]
[1756609594726,24.58,205.44,205.34,0.03138288]
[1756609595031,7.36,205.43,205.35,7.58]
[1756609595832,7.36,205.43,205.37,0.03273636]
[1756609606048,9.47594979,205.43,205.37,0.03273636]
[1756609607544,7.36,205.43,205.37,0.03273636]
[1756609608244,7.63,205.41,205.37,0.03273636]
[1756609609039,37.22,205.42,205.37,0.03273636]
[1756609609344,7.63,205.41,205.37,0.03273636]
[1756609609543,37.22,205.42,205.37,0.03273636]
[1756609609842,7.63,205.41,205.37,0.03273636]
[1756609610246,37.22,205.42,205.37,0.03273636]
[1756609610442,7.63,205.41,205.37,0.03273636]
[1756609610843,37.22,205.42,205.37,0.03273636]
[1756609611145,7.63,205.41,205.37,0.03273636]
[1756609611545,37.22,205.42,205.37,0.03273636]
[1756609612036,7.63,205.41,205.37,0.03273636]
[1756609612240,37.22,205.42,205.37,0.03273636]
[1756609612545,8.13257527,205.47,205.37,0.03273636]
[1756609612546,7.63,205.43,205.37,0.03273636]
[1756609620753,7.63,205.41,205.37,0.03273636]
[1756609627254,66.78,205.4,205.37,0.03273636]
[1756609627756,94.2,205.4,205.37,0.03273636]
[1756609628258,7.24,205.39,205.37,0.03273636]
[1756609628457,7.24,205.41,205.38,7.9]
[1756609628655,7.24,205.44,205.37,7.93273636]
[1756609631757,12.66758531,205.48,205.37,7.93273636]
[1756609631959,131.98758531,205.48,205.39,7.9]
[1756609632158,126.56,205.48,205.39,7.9]
[1756609632659,126.56,205.48,205.41,0.03133712]
[1756609636670,7.24,205.48,205.41,0.03133712]
[1756609636870,7.24,205.48,205.41,7.93133712]
[1756609637267,126.56,205.48,205.42,7.9]
[1756609640867,7.24,205.48,205.42,7.9]
[1756609642572,119.24,205.49,205.44,7.9]
[1756609642864,327.16,205.51,205.44,7.9]
[1756609642865,446.44,205.51,205.44,7.9]
[1756609643467,327.16,205.51,205.44,7.9]
[1756609643673,327.16,205.51,205.46,7.9]
[1756609643966,126.52,205.52,205.46,7.9]
[1756609644770,128.63594979,205.52,205.45,0.03493126]
[1756609654578,126.52,205.52,205.45,0.03493126]
[1756609654780,128.63594979,205.52,205.45,0.03493126]
[1756609655378,9.35594979,205.52,205.45,0.03493126]
[1756609655581,7.24,205.5,205.45,0.03493126]
[1756609663488,7.41,205.5,205.45,0.03493126]
[1756609665993,121.33594979,205.51,205.45,0.03493126]
[1756609666487,7.41,205.5,205.45,0.03493126]
[1756609666693,121.33594979,205.51,205.45,0.03493126]
[1756609666894,7.41,205.5,205.45,0.03493126]
[1756609667094,121.33594979,205.51,205.45,0.03493126]
[1756609667296,7.41,205.5,205.45,0.03493126]
[1756609668892,121.33594979,205.51,205.45,0.03493126]
[1756609669092,7.41,205.5,205.45,0.03493126]
[1756609669598,121.33594979,205.51,205.45,0.03493126]
[1756609669788,7.41,205.5,205.45,0.03493126]
[1756609671699,121.33594979,205.51,205.45,0.03493126]
[1756609671997,7.41,205.5,205.45,0.03493126]
[1756609673402,1.35106181,205.49,205.45,0.03493126]
[1756609673699,7.41,205.48,205.45,0.03493126]
[1756609673993,1.35106181,205.49,205.45,0.03493126]
[1756609674397,7.41,205.48,205.45,0.03493126]
[1756609674592,1.35106181,205.49,205.45,0.03493126]
[1756609674799,7.41,205.48,205.45,0.03493126]
[1756609675095,1.35106181,205.47,205.45,0.03493126]
[1756609675396,7.41,205.46,205.45,0.03493126]
[1756609675595,126.29,205.46,205.45,0.03493126]
[1756609676595,127.64106181,205.46,205.45,0.03493126]
[1756609677499,126.29,205.46,205.45,0.03493126]
[1756609681704,126.29,205.46,205.35,7.82]
[1756609681705,132.19758531,205.46,205.35,7.82]
[1756609681901,2.11190741,205.44,205.35,7.82]
[1756609682101,126.27,205.43,205.35,7.82]
[1756609682805,7.44438863,205.41,205.35,7.82]
[1756609683104,118.86,205.4,205.33,7.82]
[1756609684002,126.27,205.4,205.33,7.82]
[1756609687109,126.27,205.4,205.3,7.82]
[1756609687812,7.47580671,205.37,205.3,7.82]
[1756609688002,118.86,205.36,205.3,7.82]
[1756609690111,118.86,205.36,205.28,2.11190741]
[1756609690112,118.86,205.36,205.26,7.42]
[1756609690413,9.55190741,205.35,205.26,7.42]
[1756609690911,7.44,205.32,205.26,7.42]
[1756609691110,119.06,205.31,205.26,7.42]
[1756609691507,7.44,205.3,205.26,7.42]
[1756609691711,119.06,205.31,205.26,7.42]
[1756609692413,7.44,205.3,205.26,7.42]
[1756609692607,7.44,205.3,205.23,7.42]
[1756609693414,0.03731211,205.29,205.23,7.42]
[1756609693612,119.04,205.28,205.22,7.42]
[1756609695917,119.05731211,205.29,205.22,7.42]
[1756609697428,0.03731211,205.29,205.28,7.42]
[1756609706526,0.03731211,205.29,205.21,44.38759501]
[1756609706527,0.03731211,205.29,205.24,2.11190741]
[1756609706724,0.03731211,205.29,205.25,7.42]
[1756609706922,0.03731211,205.29,205.24,2.11190741]
[1756609707123,0.03731211,205.29,205.23,2.11190741]
[1756609708122,0.03731211,205.29,205.24,7.42]
[1756609708323,0.03731211,205.29,205.23,2.11190741]
[1756609708515,0.03731211,205.29,205.24,7.42]
[1756609708923,0.03731211,205.29,205.23,2.11190741]
[1756609709122,0.03731211,205.29,205.24,7.42]
[1756609709820,0.03731211,205.29,205.23,2.11190741]
[1756609710016,0.03731211,205.29,205.24,7.42]
[1756609710214,0.03731211,205.29,205.23,2.11190741]
[1756609710421,0.03731211,205.29,205.24,7.42]
[1756609710619,0.03731211,205.29,205.23,2.11190741]
[1756609711427,0.03731211,205.29,205.24,7.42]
[1756609711726,0.03731211,205.29,205.23,2.11190741]
[1756609712023,0.03731211,205.29,205.24,7.42]
[1756609712225,0.03731211,205.29,205.23,2.11190741]
[1756609712420,0.03731211,205.29,205.24,7.42]
[1756609713720,0.03731211,205.29,205.23,2.11190741]
[1756609714225,0.03731211,205.29,205.24,7.42]
[1756609714616,0.03731211,205.29,205.23,2.11190741]
[1756609714821,0.03731211,205.29,205.24,7.42]
[1756609715218,0.03731211,205.29,205.23,2.11190741]
[1756609715430,7.47731211,205.29,205.26,8.77319841]
[1756609715830,7.44,205.29,205.26,8.77319841]
[1756609718533,0.03665286,205.3,205.26,8.77319841]
[1756609718733,7.72,205.29,205.26,8.77319841]
[1756609718931,7.72,205.29,205.26,7.42]
[1756609719132,7.72,205.29,205.26,8.77319841]
[1756609719632,7.72,205.29,205.26,7.42]
[1756609720933,0.03665286,205.3,205.26,7.42]
[1756609721134,7.72,205.29,205.26,7.42]
[1756609725040,0.03665286,205.3,205.26,7.42]
[1756609725238,0.03665286,205.3,205.29,9.04319841]
[1756609725736,9.07319841,205.35,205.29,9.04319841]
[1756609725941,0.03610356,205.32,205.29,1.35319841]
[1756609726137,0.03610356,205.32,205.3,7.69]
[1756609726728,7.75610356,205.32,205.3,7.69]
[1756609728040,0.03610356,205.32,205.3,7.69]
[1756609728538,7.75610356,205.32,205.3,7.69]
[1756609729735,0.03610356,205.32,205.27,7.69]
[1756609729934,1.35319841,205.31,205.27,7.69]
[1756609730140,7.72,205.3,205.27,7.69]
[1756609730441,7.72,205.3,205.23,1.35319841]
[1756609730442,7.72,205.3,205.24,7.69]
[1756609737743,9.07319841,205.3,205.24,7.69]
[1756609738445,7.72,205.27,205.21,7.69]
[1756609739144,0.0343848,205.26,205.2,1.35319841]
[1756609739442,7.7543848,205.26,205.2,9.04319841]
[1756609742448,7.7543848,205.26,205.2,7.69]
[1756609742648,7.7543848,205.26,205.2,9.04319841]
[1756609743045,0.0343848,205.26,205.22,1.35319841]
[1756609743246,0.0343848,205.26,205.25,7.69]
[1756609743848,0.0343848,205.26,205.25,9.04319841]
[1756609744748,0.0343848,205.26,205.25,7.69]
[1756609745048,0.0343848,205.26,205.25,9.04319841]
[1756609745450,0.0343848,205.26,205.25,7.69]
[1756609751758,0.0343848,205.26,205.22,2.11453607]
[1756609751958,0.0343848,205.26,205.2,7.63]
[1756609752161,0.0343848,205.26,205.2,13.09527628]
[1756609752360,0.0343848,205.26,205.2,7.63]
[1756609753761,0.0343848,205.26,205.22,7.63]
[1756609754556,0.0343848,205.26,205.21,2.11453607]
[1756609754762,0.0343848,205.26,205.22,7.63]
[1756609755163,0.0343848,205.26,205.21,2.11453607]
[1756609755463,0.0343848,205.26,205.22,7.63]
[1756609756458,0.0343848,205.26,205.21,2.11453607]
[1756609756658,0.0343848,205.26,205.22,7.63]
[1756609760161,0.0343848,205.26,205.21,2.11453607]
[1756609760556,0.0343848,205.26,205.22,7.63]
[1756609760759,0.0343848,205.26,205.21,2.11453607]
[1756609761367,0.0343848,205.26,205.22,7.63]
[1756609761564,0.0343848,205.26,205.21,2.11453607]
[1756609762161,0.0343848,205.26,205.22,7.63]
[1756609762362,0.0343848,205.26,205.19,5.46527628]
[1756609762566,0.0343848,205.26,205.2,7.63]
[1756609762767,7.2843848,205.26,205.2,7.63]
[1756609763166,0.0343848,205.26,205.2,7.63]
[1756609764563,0.0343848,205.26,205.22,7.63]
[1756609765373,0.0343848,205.26,205.25,7.63]
[1756609767567,0.0343848,205.26,205.23,9.74453607]
[1756609767768,0.0343848,205.26,205.23,7.63]
[1756609767974,7.2843848,205.26,205.23,7.63]
[1756609769573,0.0343848,205.26,205.2,9.74453607]
[1756609769776,7.25,205.25,205.2,7.63]
[1756609769976,7.25,205.25,205.18,2.11453607]
[1756609774578,7.25,205.25,205.17,7.63]
[1756609774776,7.25,205.25,205.17,9.74453607]
[1756609776982,7.25,205.25,205.18,7.63]
[1756609779584,7.25,205.25,205.18,9.74453607]
[1756609780484,0.0343848,205.26,205.22,7.31]
[1756609780680,0.0343848,205.26,205.21,2.11453607]
[1756609781481,0.0343848,205.26,205.22,7.31]
[1756609782179,0.0343848,205.26,205.21,2.11453607]
[1756609782575,0.0343848,205.26,205.22,7.31]
[1756609782783,0.0343848,205.26,205.21,2.11453607]
[1756609782983,0.0343848,205.26,205.22,7.31]
[1756609783383,0.0343848,205.26,205.21,2.11453607]
[1756609783780,0.0343848,205.26,205.22,7.31]
[1756609784177,0.0343848,205.26,205.21,2.11453607]
[1756609784688,0.0343848,205.26,205.22,7.31]
[1756609785684,0.0343848,205.26,205.21,2.11453607]
[1756609786080,0.0343848,205.26,205.22,7.31]
[1756609786786,0.0343848,205.26,205.21,2.11453607]
[1756609787588,0.0343848,205.26,205.22,7.31]
[1756609787790,0.0343848,205.26,205.21,2.11453607]
[1756609787990,0.0343848,205.26,205.22,7.31]
[1756609788991,0.0343848,205.26,205.21,2.11453607]
[1756609789787,0.0343848,205.26,205.22,7.31]
[1756609789992,0.0343848,205.26,205.21,2.11453607]
[1756609790386,0.0343848,205.26,205.22,7.31]
[1756609790890,0.0343848,205.26,205.21,2.11453607]
[1756609791193,0.0343848,205.26,205.22,7.31]
[1756609791789,0.0343848,205.26,205.21,2.11453607]
[1756609791988,0.0343848,205.26,205.22,7.31]
[1756609792487,0.0343848,205.26,205.21,2.11453607]
[1756609792682,7.82,205.25,205.19,5.46527628]
[1756609792881,7.82,205.25,205.19,2.11453607]
[1756609793087,7.82,205.25,205.19,9.42453607]
[1756609793491,7.82,205.25,205.2,7.31]
[1756609793993,7.8543848,205.26,205.19,9.42453607]
[1756609795791,7.8543848,205.26,205.19,7.31]
[1756609800905,2.38924497,205.25,205.19,7.31]
[1756609801198,0.0343848,205.26,205.19,7.31]
[1756609801403,2.38911316,205.25,205.19,7.31]
[1756609801597,2.38911316,205.24,205.19,7.31]
[1756609801804,7.82,205.22,205.19,7.31]
[1756609802106,2.38870441,205.21,205.19,7.31]
[1756609802304,2.38870441,205.2,205.19,7.31]
[1756609804808,2.38870441,205.2,205.17,9.42453607]
[1756609805009,2.38870441,205.19,205.18,7.31]
[1756609807909,0.03287965,205.22,205.18,5.46527628]
[1756609808106,0.03287965,205.22,205.19,7.34]
[1756609809309,0.03287965,205.22,205.21,7.34]
[1756609810415,7.93,205.35,205.21,7.82]
[1756609810611,7.93,205.35,205.27,7.34]
[1756609811610,7.93,205.35,205.29,0.03136893]
[1756609811805,126.91,205.35,205.29,0.03136893]
[1756609812515,118.98,205.37,205.3,7.34]
[1756609812709,126.91,205.37,205.3,7.34]
[1756609815816,7.93,205.37,205.3,7.34]
[1756609816115,118.96,205.36,205.3,7.34]
[1756609817010,327.44,205.43,205.32,2.11453607]
[1756609817206,327.44,205.43,205.29,0.03136893]
[1756609817207,126.89,205.42,205.29,0.03136893]
[1756609817412,7.93,205.4,205.29,9.45453607]
[1756609817915,7.93,205.4,205.33,0.03085874]
[1756609820016,7.93,205.38,205.33,0.03085874]
[1756609820214,7.93,205.36,205.33,0.03085874]
[1756609820413,10.25556409,205.35,205.33,0.03085874]
[1756609820619,2.32556409,205.34,205.33,0.03085874]
[1756609822118,2.3246531,205.34,205.33,0.03085874]
[1756609823123,2.3246531,205.34,205.33,7.37085874]
[1756609826026,2.3246531,205.34,205.33,0.03085874]
[1756609826222,10.2546531,205.34,205.33,0.03085874]
[1756609826419,2.3246531,205.34,205.33,0.03085874]
[1756609826626,7.93,205.41,205.33,7.85085874]
[1756609826826,2.32380741,205.4,205.35,2.11453607]
[1756609827027,7.93,205.41,205.35,2.11453607]
[1756609827625,7.93,205.41,205.36,7.34]
[1756609827825,7.93,205.41,205.35,2.11453607]
[1756609828725,7.93,205.41,205.36,7.34]
[1756609829418,7.93,205.41,205.35,2.11453607]
[1756609829823,7.93,205.41,205.36,7.34]
[1756609830027,7.93,205.42,205.35,2.11453607]
[1756609830429,126.95,205.42,205.35,2.11453607]
[1756609832933,126.95,205.42,205.33,7.37085874]
[1756609835635,7.93,205.42,205.33,7.37085874]
[1756609835837,118.94,205.41,205.33,7.37085874]
[1756609836037,7.93,205.4,205.33,7.37085874]
[1756609836933,118.9,205.39,205.33,7.37085874]
[1756609841041,7.42,205.38,205.33,7.37085874]
[1756609841241,7.42,205.38,205.33,0.03085874]
[1756609848146,118.9,205.39,205.33,0.03085874]
[1756609848147,7.42,205.36,205.33,0.03085874]
[1756609848346,7.42,205.34,205.33,0.03085874]
[1756609850443,9.53453607,205.34,205.33,0.03085874]
[1756609850750,10.01453607,205.34,205.33,0.03085874]
[1756609852044,128.93453607,205.34,205.33,0.03085874]
[1756609854053,10.01453607,205.34,205.33,0.03085874]
[1756609854251,36.75453607,205.34,205.33,0.03085874]
[1756609854451,10.01453607,205.34,205.33,0.03085874]
[1756609854650,36.25453607,205.34,205.33,0.03085874]
[1756609854853,7.42,205.34,205.33,0.03085874]
[1756609855053,33.7,205.34,205.33,0.03085874]
[1756609860459,7.42,205.34,205.33,0.03085874]
[1756609860662,32.22,205.34,205.33,0.03085874]
[1756609862556,7.42,205.41,205.33,0.03085874]
[1756609862763,7.42,205.41,205.34,7.4]
[1756609862962,126.44,205.41,205.34,7.4]
[1756609866264,7.42,205.41,205.34,7.4]
[1756609866464,126.42,205.41,205.34,7.4]
[1756609866868,7.42,205.41,205.34,7.4]
[1756609867263,126.4,205.41,205.33,0.03085874]
[1756609867668,7.46,205.39,205.33,0.03085874]
[1756609868466,118.96,205.38,205.33,0.03085874]
[1756609869161,7.46,205.37,205.33,0.03085874]
[1756609869768,119.12,205.36,205.33,0.03085874]
[1756609869962,7.46,205.36,205.33,0.03085874]
[1756609870158,126.54,205.36,205.33,0.03085874]
[1756609870358,7.46,205.35,205.33,0.03085874]
[1756609871065,119.08,205.36,205.33,0.03085874]
[1756609871368,7.46,205.35,205.33,0.03085874]
[1756609871567,119.08,205.36,205.33,0.03085874]
[1756609872569,7.46,205.35,205.33,0.03085874]
[1756609872764,119.08,205.36,205.33,0.03085874]
[1756609873071,7.46,205.35,205.33,0.03085874]
[1756609873468,2.11453607,205.38,205.33,0.03085874]
[1756609873672,126.56,205.37,205.33,0.03085874]
[1756609876384,7.46,205.37,205.33,0.03085874]
[1756609876575,119.06,205.36,205.33,0.03085874]
[1756609877276,7.46,205.35,205.33,0.03085874]
[1756609878074,119.06,205.36,205.33,0.03085874]
[1756609878468,7.46,205.35,205.33,0.03085874]
[1756609878866,119.06,205.36,205.33,0.03085874]
[1756609879268,7.46,205.35,205.33,0.03085874]
[1756609879473,119.06,205.36,205.33,0.03085874]
[1756609880076,7.46,205.35,205.33,0.03085874]
[1756609880275,118.98,205.34,205.33,0.03085874]
[1756609880479,126.44,205.34,205.33,0.03085874]
[1756609881580,7.46,205.34,205.33,0.03085874]
[1756609881774,126.44,205.34,205.33,0.03085874]
[1756609886180,7.46,205.42,205.33,2.62539481]
[1756609886480,119.2,205.41,205.34,7.34]
[1756609888981,119.2,205.41,205.33,0.03085874]
[1756609888982,7.46,205.4,205.33,0.03085874]
[1756609893785,9.57453607,205.4,205.33,0.03085874]
[1756609893991,7.46,205.4,205.33,0.03085874]
[1756609894191,7.46,205.37,205.33,0.03085874]
[1756609894490,119.28,205.36,205.33,0.03085874]
[1756609894685,7.46,205.35,205.33,0.03085874]
[1756609895391,119.28,205.36,205.33,0.03085874]
[1756609895889,7.46,205.35,205.33,0.03085874]
[1756609896088,119.28,205.36,205.33,0.03085874]
[1756609896690,7.46,205.35,205.33,0.03085874]
[1756609896886,119.28,205.36,205.33,0.03085874]
[1756609897086,7.46,205.35,205.33,0.03085874]
[1756609897291,119.28,205.36,205.33,0.03085874]
[1756609897589,7.58,205.35,205.33,0.03085874]
[1756609898291,119.28,205.36,205.33,0.03085874]
[1756609898790,7.58,205.35,205.33,0.03085874]
[1756609898990,119.28,205.36,205.33,0.03085874]
[1756609899182,7.58,205.35,205.33,0.03085874]
[1756609899888,119.28,205.36,205.33,0.03085874]
[1756609900087,7.58,205.35,205.33,0.03085874]
[1756609900797,91.2,205.34,205.33,0.03085874]
[1756609901192,98.78,205.34,205.33,0.03085874]
[1756609901391,7.58,205.34,205.33,0.03085874]
[1756609901696,7.58,205.39,205.33,0.03085874]
[1756609901889,7.58,205.34,205.33,0.03085874]
[1756609902086,126.74,205.34,205.33,0.03085874]
[1756609902286,7.58,205.34,205.33,0.03085874]
[1756609902487,33.3,205.34,205.33,0.03085874]
[1756609906304,7.58,205.34,205.33,0.03085874]
[1756609912413,7.58,205.41,205.33,0.03085874]
[1756609912609,121.56,205.41,205.33,0.03085874]
[1756609913005,7.58,205.41,205.36,2.11453607]
[1756609913303,40.4,205.46,205.37,7.7]
[1756609914107,40.4,205.46,205.39,0.03538506]
[1756609915006,7.58,205.43,205.39,0.03538506]
[1756609916505,2.11453607,205.44,205.39,0.03538506]
[1756609916506,119.56,205.44,205.39,0.03538506]
[1756609916712,7.58,205.43,205.39,0.03538506]
[1756609916911,7.58,205.43,205.4,7.7]
[1756609917111,7.58,205.43,205.39,0.03538506]
[1756609917112,7.58,205.43,205.39,7.73538506]
[1756609917307,7.58,205.43,205.4,7.7]
[1756609917708,119.56,205.44,205.39,0.03538506]
[1756609917908,7.58,205.43,205.39,0.03538506]
[1756609918110,119.56,205.44,205.39,0.03538506]
[1756609918309,7.58,205.43,205.39,0.03538506]
[1756609918608,119.56,205.44,205.39,0.03538506]
[1756609918813,7.58,205.43,205.39,7.73538506]
[1756609919209,119.56,205.44,205.39,7.73538506]
[1756609920011,7.58,205.43,205.39,7.73538506]
[1756609920212,119.56,205.44,205.39,7.73538506]
[1756609920814,7.58,205.43,205.39,7.73538506]
[1756609921210,119.56,205.44,205.39,7.73538506]
[1756609921416,7.58,205.47,205.39,7.73538506]
[1756609921609,7.58,205.45,205.39,7.73538506]
[1756609922920,7.58,205.45,205.39,0.03538506]
[1756609923613,119.48,205.44,205.39,7.73538506]
[1756609924019,7.58,205.43,205.39,7.73538506]
[1756609924222,7.58,205.42,205.39,7.73538506]
[1756609924420,7.58,205.42,205.4,7.7]
[1756609925319,7.58,205.42,205.39,7.73538506]
[1756609925626,7.58,205.42,205.39,0.03538506]
[1756609925824,7.58,205.42,205.39,7.73538506]
[1756609926718,119.42,205.43,205.39,7.73538506]
[1756609926922,7.58,205.42,205.39,7.73538506]
[1756609927322,7.58,205.42,205.39,0.03538506]
[1756609927530,119.42,205.43,205.4,7.34]
[1756609927829,127.19,205.43,205.4,7.34]
[1756609928425,7.77,205.43,205.4,7.34]
[1756609928630,127.15,205.43,205.4,7.34]
[1756609928929,7.77,205.43,205.4,7.34]
[1756609929131,119.36,205.43,205.4,7.34]
[1756609929327,119.36,205.43,205.39,0.03538506]
[1756609929531,127.13,205.44,205.4,7.34]
[1756609930124,127.13,205.44,205.39,0.03538506]
[1756609930331,7.77,205.43,205.4,7.34]
[1756609933025,7.77,205.43,205.39,0.03538506]
[1756609933234,9.88453607,205.43,205.39,0.03538506]
[1756609936528,7.77,205.41,205.39,0.03538506]
[1756609937230,119.38,205.42,205.39,0.03538506]
[1756609937733,7.77,205.41,205.39,0.03538506]
[1756609938627,2.11453607,205.4,205.31,7.34]
[1756609938929,2.11453607,205.4,205.26,5.46527628]
[1756609938930,7.77,205.36,205.27,7.34]
[1756609939134,119.42,205.35,205.27,7.34]
[1756609939632,7.77,205.34,205.27,7.34]
[1756609940033,0.03450402,205.33,205.27,7.34]
[1756609942223,7.77,205.32,205.27,7.34]
[1756609942733,0.03450402,205.33,205.27,7.34]